fUST/lending_fUST_20260527
["ID","MTS","AMOUNT","RATE_DAILY","PERIOD"]
[423106042,1779855047000,-500.0,8.219e-05,2]
[423106044,1779855047000,-500.0,8.219e-05,2]
[423106046,1779855047000,-500.0,8.219e-05,2]
[423106061,1779855047000,-500.0,8.219e-05,2]
[423106063,1779855047000,-500.0,8.219e-05,2]
[423106054,1779855047000,-500.0,8.219e-05,2]
[423106048,1779855047000,-500.0,8.219e-05,2]
[423106050,1779855047000,-500.0,8.219e-05,2]
[423106069,1779855047000,-548.88358757,8.219e-05,2]
[423106033,1779855047000,-500.0,8.219e-05,2]
[423106130,1779855047000,-500.0,8.219e-05,2]
[423106052,1779855047000,-546.25,8.219e-05,2]
[423106144,1779855047000,-423.5905201,8.219e-05,2]
[423106196,1779855047000,-500.0,8.219e-05,2]
[423106211,1779855047000,-500.0,8.219e-05,2]
[423106205,1779855047000,-500.0,8.219e-05,2]
[423106215,1779855047000,-500.0,8.219e-05,2]
[423106209,1779855047000,-500.0,8.219e-05,2]
[423106202,1779855047000,-500.0,8.219e-05,2]
[423106207,1779855047000,-500.0,8.219e-05,2]
[423106213,1779855047000,-500.0,8.219e-05,2]
[423106200,1779855047000,-514.79319145,8.219e-05,2]
[423106217,1779855047000,-319.44658465,8.219e-05,2]
[423106219,1779855047000,-500.0,8.219e-05,2]
[423106224,1779855047000,-403.11065834,8.219e-05,2]
[423106234,1779855047000,-500.0,8.219e-05,2]
[423106178,1779855047000,-264.45781889,8.219e-05,2]
[423106236,1779855047000,-500.0,8.219e-05,2]
[423106226,1779855047000,-500.0,8.219e-05,2]
[423106222,1779855047000,-500.0,8.219e-05,2]
[423106238,1779855047000,-500.0,8.219e-05,2]
[423106228,1779855047000,-500.0,8.219e-05,2]
[423106242,1779855047000,-522.14667859,8.219e-05,2]
[423106239,1779855047000,-500.5391251,8.219e-05,2]
[423106243,1779855047000,-605.44051192,8.219e-05,2]
[423106230,1779855047000,-500.0,8.219e-05,2]
[423106245,1779855047000,-500.0,8.219e-05,2]
[423106250,1779855047000,-159.75724046,8.219e-05,2]
[423106248,1779855047000,-500.0,8.219e-05,2]
[423106252,1779855047000,-500.0,8.219e-05,2]
[423106136,1779855047000,-500.0,8.219e-05,2]
[423106232,1779855047000,-1984.84,8.219e-05,2]
[423106174,1779855047000,-500.0,8.219e-05,2]
[423106198,1779855047000,-500.0,8.219e-05,2]
[423106184,1779855047000,-500.0,8.219e-05,2]
[423106140,1779855047000,-500.0,8.219e-05,2]
[423106146,1779855047000,-500.43547489,8.219e-05,2]
[423106142,1779855047000,-500.0,8.219e-05,2]
[423106134,1779855047000,-500.0,8.219e-05,2]
[423106138,1779855047000,-500.1369937,8.219e-05,2]
[423106180,1779855047000,-500.0,8.219e-05,2]
[423106128,1779855047000,-500.0,8.219e-05,2]
[423106159,1779855047000,-500.0,8.219e-05,2]
[423106154,1779855047000,-500.00048005,8.219e-05,2]
[423106150,1779855047000,-500.0,8.219e-05,2]
[423106165,1779855047000,-500.0,8.219e-05,2]
[423106161,1779855047000,-490.54449192,8.219e-05,2]
[423106169,1779855047000,-500.0,8.219e-05,2]
[423106158,1779855047000,-500.0,8.219e-05,2]
[423106148,1779855047000,-500.0,8.219e-05,2]
[423106162,1779855047000,-500.0,8.219e-05,2]
[423106156,1779855047000,-500.0,8.219e-05,2]
[423106182,1779855047000,-500.0,8.219e-05,2]
[423106190,1779855047000,-535.16480761,8.219e-05,2]
[423106192,1779855047000,-619.31,8.219e-05,2]
[423106194,1779855047000,-500.0,8.219e-05,2]
[423106186,1779855047000,-372.85897111,8.219e-05,2]
[423106188,1779855047000,-500.0,8.219e-05,2]
[423106173,1779855047000,-500.0,8.219e-05,2]
[423106176,1779855047000,-500.0,8.219e-05,2]
[423106152,1779855047000,-500.0,8.219e-05,2]
[423106167,1779855047000,-504.24480092,8.219e-05,2]
[423106160,1779855047000,-570.61729315,8.219e-05,2]
[423106171,1779855047000,-265.59260161,8.219e-05,2]
[423106275,1779855048000,-500.0,8.491e-05,2]
[423106271,1779855048000,-500.0,8.491e-05,2]
[423106279,1779855048000,-500.0,8.492e-05,2]
[423106277,1779855048000,-500.0,8.492e-05,2]
[423106288,1779855048000,-500.0,8.492e-05,2]
[423106286,1779855048000,-500.0,8.492e-05,2]
[423106281,1779855048000,-500.0,8.492e-05,2]
[423106283,1779855048000,-500.0,8.492e-05,2]
[423106262,1779855048000,-503.39563356,8.219e-05,2]
[423106269,1779855048000,-160.0,8.461e-05,2]
[423106254,1779855048000,-500.0,8.219e-05,2]
[423106258,1779855048000,-500.0,8.219e-05,2]
[423106263,1779855048000,-500.0,8.219e-05,2]
[423106260,1779855048000,-625.18269358,8.219e-05,2]
[423106267,1779855048000,-160.0,8.461e-05,2]
[423106265,1779855048000,-454.76610844,8.219e-05,2]
[423106256,1779855048000,-500.0,8.219e-05,2]
[423106290,1779855048000,-500.0,8.492e-05,2]
[423106273,1779855048000,-500.0,8.491e-05,2]
[423106292,1779855048000,-500.0,8.492e-05,2]
[423106303,1779855048000,-500.0,8.493e-05,2]
[423106296,1779855048000,-500.0,8.493e-05,2]
[423106298,1779855048000,-500.0,8.493e-05,2]
[423106336,1779855048000,-77.30875061,8.493e-05,2]
[423106321,1779855048000,-188.22,8.493e-05,2]
[423106328,1779855048000,-500.0,8.493e-05,2]
[423106334,1779855048000,-150.82742309,8.493e-05,2]
[423106327,1779855048000,-134.36826162,8.493e-05,2]
[423106332,1779855048000,-500.0,8.493e-05,2]
[423106330,1779855048000,-503.2955546,8.493e-05,2]
[423106319,1779855048000,-288.3703927,8.493e-05,2]
[423106323,1779855048000,-31.30173838,8.493e-05,2]
[423106307,1779855048000,-648.49,8.493e-05,2]
[423106317,1779855048000,-500.0,8.493e-05,2]
[423106299,1779855048000,-500.0,8.493e-05,2]
[423106309,1779855048000,-386.99,8.493e-05,2]
[423106311,1779855048000,-500.0,8.493e-05,2]
[423106314,1779855048000,-501.50243768,8.493e-05,2]
[423106294,1779855048000,-346.22,8.493e-05,2]
[423106301,1779855048000,-500.0,8.493e-05,2]
[423106305,1779855048000,-395.78,8.493e-05,2]
[423106315,1779855048000,-500.0,8.493e-05,2]
[423107711,1779855252000,-5000.0,6.99e-05,2]
[423107712,1779855260000,-5000.0,6.99e-05,2]
[423107713,1779855275000,-5000.0,6.99e-05,2]
[423107714,1779855280000,5000.0,7e-05,2]
[423107715,1779855298000,-5000.0,6.99e-05,2]
[423107716,1779855320000,-5000.0,6.93e-05,2]
[423107717,1779855320000,-5000.0,7e-05,2]
[423107718,1779855332000,-5000.0,6.989e-05,2]
[423107719,1779855341000,152.0,0.0001441,30]
[423107720,1779855353000,-1174.1236409,6.919e-05,2]
[423107721,1779855353000,-5000.0,6.989e-05,2]
[423107735,1779855360000,152.0,0.0001441,30]
[423107736,1779855365000,-5000.0,6.989e-05,2]
[423107738,1779855413000,600.0,6.919e-05,2]
[423107737,1779855413000,-5000.0,6.989e-05,2]
[423107748,1779855703000,-5000.0,6.714e-05,2]
[423107751,1779855703000,-500.0,6.781e-05,2]
[423107749,1779855703000,-300.0,6.78e-05,2]
[423107750,1779855703000,-500.0,6.781e-05,2]
[423107752,1779855703000,-500.0,6.781e-05,2]
[423107754,1779855703000,-500.0,6.781e-05,2]
[423107753,1779855703000,-500.0,6.781e-05,2]
[423107760,1779855704000,-135.58062875,6.781e-05,2]
[423107758,1779855704000,-325.41937125,6.781e-05,2]
[423107759,1779855704000,-500.0,6.781e-05,2]
[423107757,1779855704000,-500.0,6.781e-05,2]
[423107756,1779855704000,-500.0,6.781e-05,2]
[423107755,1779855704000,-500.0,6.781e-05,2]
[423107762,1779855723000,-364.41937125,6.781e-05,2]
[423107761,1779855723000,-300.0,6.78e-05,2]
[423107764,1779855723000,-500.0,6.781e-05,2]
[423107765,1779855723000,-500.0,6.781e-05,2]
[423107766,1779855723000,-500.0,6.781e-05,2]
[423107763,1779855723000,-500.0,6.781e-05,2]
[423107773,1779855724000,-500.0,6.781e-05,2]
[423107769,1779855724000,-500.0,6.781e-05,2]
[423107768,1779855724000,-427.47097886,6.781e-05,2]
[423107767,1779855724000,-500.0,6.781e-05,2]
[423107770,1779855724000,-500.0,6.781e-05,2]
[423107771,1779855724000,-500.0,6.781e-05,2]
[423107772,1779855724000,-500.0,6.781e-05,2]
[423107781,1779855724000,-500.0,6.781e-05,2]
[423107776,1779855724000,-500.0,6.781e-05,2]
[423107777,1779855724000,-500.0,6.781e-05,2]
[423107775,1779855724000,-500.0,6.781e-05,2]
[423107778,1779855724000,-500.0,6.781e-05,2]
[423107779,1779855724000,-500.0,6.781e-05,2]
[423107780,1779855724000,-500.0,6.781e-05,2]
[423107782,1779855724000,-393.10964989,6.781e-05,2]
[423107774,1779855724000,-500.0,6.781e-05,2]
[423107788,1779855744000,-5000.0,6.713e-05,2]
[423107792,1779855744000,-500.0,6.781e-05,2]
[423107791,1779855744000,-500.0,6.781e-05,2]
[423107789,1779855744000,-106.89035011,6.781e-05,2]
[423107793,1779855744000,-500.0,6.781e-05,2]
[423107795,1779855744000,-7.10964989,6.781e-05,2]
[423107794,1779855744000,-500.0,6.781e-05,2]
[423107790,1779855744000,-500.0,6.781e-05,2]
[423107796,1779855758000,-1300.0,6.713e-05,2]
[423107808,1779856089000,-300.0,5.998e-05,2]
[423107807,1779856089000,-5000.0,5.94e-05,2]
[423107809,1779856089000,-4700.0,5.999e-05,2]
[423107811,1779856091000,-500.0,5.999e-05,2]
[423107810,1779856091000,-6973.82061543,5.999e-05,2]
[423107812,1779856092000,-269.71899765,5.999e-05,2]
[423107814,1779856092000,-500.0,5.999e-05,2]
[423107815,1779856092000,-500.0,5.999e-05,2]
[423107813,1779856092000,-500.0,5.999e-05,2]
[423107816,1779856092000,-500.0,5.999e-05,2]
[423107817,1779856092000,-256.46038692,5.999e-05,2]
[423107818,1779856093000,-243.53961308,5.999e-05,2]
[423107820,1779856093000,-500.0,5.999e-05,2]
[423107819,1779856093000,-500.0,5.999e-05,2]
[423107821,1779856093000,-500.0,5.999e-05,2]
[423107822,1779856093000,-500.0,5.999e-05,2]
[423107824,1779856093000,-500.0,5.999e-05,2]
[423107823,1779856093000,-500.0,5.999e-05,2]
[423107825,1779856093000,-500.0,5.999e-05,2]
[423107826,1779856093000,-500.0,5.999e-05,2]
[423107828,1779856093000,-500.0,5.999e-05,2]
[423107833,1779856093000,-500.0,5.999e-05,2]
[423107830,1779856093000,-500.0,5.999e-05,2]
[423107829,1779856093000,-500.0,5.999e-05,2]
[423107831,1779856093000,-500.0,5.999e-05,2]
[423107832,1779856093000,-500.0,5.999e-05,2]
[423107835,1779856093000,-500.0,5.999e-05,2]
[423107834,1779856093000,-500.0,5.999e-05,2]
[423107827,1779856093000,-500.0,5.999e-05,2]
[423107836,1779856093000,-500.0,5.999e-05,2]
[423107838,1779856093000,-256.46038692,5.999e-05,2]
[423107837,1779856093000,-500.0,5.999e-05,2]
[423107840,1779856094000,-241.99604409,5.999e-05,2]
[423107839,1779856094000,-2094.90122121,5.939e-05,2]
[423107841,1779856094000,-500.0,5.999e-05,2]
[423107842,1779856094000,-500.0,5.999e-05,2]
[423107843,1779856094000,-500.0,5.999e-05,2]
[423107845,1779856094000,-500.0,5.999e-05,2]
[423107844,1779856094000,-500.0,5.999e-05,2]
[423107846,1779856094000,-500.0,5.999e-05,2]
[423107847,1779856094000,-4663.1027347,6e-05,2]
[423107848,1779856095000,-336.8972653,6e-05,2]
[423107865,1779856211000,-5000.0,6e-05,2]
[423107866,1779856229000,-1760.05454395,5.97e-05,2]
[423107913,1779856232000,-300.0,6.117e-05,2]
[423107915,1779856232000,-300.0,6.117e-05,2]
[423107911,1779856232000,-173.394795,6.061e-05,2]
[423107917,1779856232000,-1200.0,6.117e-05,2]
[423107909,1779856232000,-386.91065584,6.03e-05,2]
[423107919,1779856232000,-500.0,6.117e-05,2]
[423107937,1779856232000,-168.1821593,6.118e-05,2]
[423107923,1779856232000,-205.51325591,6.117e-05,2]
[423107933,1779856232000,-228.85764504,6.118e-05,2]
[423107935,1779856232000,-300.0,6.118e-05,2]
[423107926,1779856232000,-394.33238719,6.117e-05,2]
[423107928,1779856232000,-71.14235496,6.118e-05,2]
[423107921,1779856232000,-500.0,6.117e-05,2]
[423108086,1779856238000,-300.0,6.118e-05,2]
[423108084,1779856238000,-188.74606068,6.118e-05,2]
[423108061,1779856238000,-300.0,6.118e-05,2]
[423108065,1779856238000,-300.0,6.118e-05,2]
[423108059,1779856238000,-300.0,6.118e-05,2]
[423108063,1779856238000,-300.0,6.118e-05,2]
[423108057,1779856238000,-300.0,6.118e-05,2]
[423108069,1779856238000,-300.0,6.118e-05,2]
[423108071,1779856238000,-111.25393932,6.118e-05,2]
[423108056,1779856238000,-300.0,6.118e-05,2]
[423108088,1779856238000,-300.0,6.118e-05,2]
[423108067,1779856238000,-300.0,6.118e-05,2]
[423108102,1779856238000,-159.7982,7.132e-05,2]
[423108054,1779856238000,-131.8178407,6.118e-05,2]
[423108108,1779856238000,-172.107495,7.381e-05,2]
[423108118,1779856238000,-151.0,7.442e-05,2]
[423108104,1779856238000,-500.0,7.357e-05,2]
[423108116,1779856238000,-283.416767,7.437e-05,2]
[423108114,1779856238000,-864.0,7.403e-05,2]
[423108098,1779856238000,-1680.0,6.729e-05,2]
[423108110,1779856238000,-587.0,7.402e-05,2]
[423108112,1779856238000,-880.0,7.402e-05,2]
[423108094,1779856238000,-168.1201089,6.729e-05,2]
[423108092,1779856238000,-600.0,6.118e-05,2]
[423108096,1779856238000,-251.8798911,6.729e-05,2]
[423108090,1779856238000,-300.0,6.118e-05,2]
[423108106,1779856238000,-16626.4202379,7.358e-05,2]
[423108100,1779856238000,-720.0,6.73e-05,2]
[423108129,1779856239000,-248.16,8.219e-05,2]
[423108120,1779856239000,-456.5545739,8.03e-05,2]
[423108122,1779856239000,-823.0,8.142e-05,2]
[423108133,1779856239000,-500.0,8.219e-05,2]
[423108131,1779856239000,-500.0,8.219e-05,2]
[423108127,1779856239000,-500.0,8.219e-05,2]
[423108126,1779856239000,-500.0,8.219e-05,2]
[423108138,1779856239000,-239.35212169,8.219e-05,2]
[423108136,1779856239000,-260.64787831,8.219e-05,2]
[423108140,1779856239000,-500.0,8.219e-05,2]
[423108142,1779856239000,-72.15902283,8.219e-05,2]
[423108148,1779856239000,-305.8522856,8.219e-05,2]
[423108124,1779856239000,-1000.0,8.143e-05,2]
[423108402,1779856241000,-288.47576437,8.219e-05,2]
[423108400,1779856241000,-123.53674622,8.219e-05,2]
[423108854,1779856244000,-500.0,8.219e-05,2]
[423108868,1779856244000,-500.0,8.219e-05,2]
[423108864,1779856244000,-500.0,8.219e-05,2]
[423108850,1779856244000,-500.0,8.219e-05,2]
[423108862,1779856244000,-500.0,8.219e-05,2]
[423108852,1779856244000,-494.42,8.219e-05,2]
[423108870,1779856244000,-500.0,8.219e-05,2]
[423108848,1779856244000,-1000.0,8.219e-05,2]
[423108865,1779856244000,-500.0,8.219e-05,2]
[423108856,1779856244000,-333.05965246,8.219e-05,2]
[423108872,1779856244000,-500.0,8.219e-05,2]
[423108880,1779856244000,-500.0,8.219e-05,2]
[423108858,1779856244000,-629.9,8.219e-05,2]
[423108874,1779856244000,-500.0,8.219e-05,2]
[423108886,1779856244000,-390.78966947,8.219e-05,2]
[423108876,1779856244000,-181.16806726,8.219e-05,2]
[423108888,1779856244000,-500.0,8.219e-05,2]
[423108878,1779856244000,-318.83193274,8.219e-05,2]
[423108884,1779856244000,-154.68734958,8.219e-05,2]
[423108832,1779856244000,-115.45228028,8.219e-05,2]
[423108859,1779856244000,-500.0,8.219e-05,2]
[423108834,1779856244000,-500.0,8.219e-05,2]
[423108799,1779856244000,-500.0,8.219e-05,2]
[423108844,1779856244000,-500.0,8.219e-05,2]
[423108882,1779856244000,-345.31265042,8.219e-05,2]
[423108785,1779856244000,-78.32192798,8.219e-05,2]
[423108787,1779856244000,-500.0,8.219e-05,2]
[423108789,1779856244000,-500.0,8.219e-05,2]
[423108791,1779856244000,-646.28630991,8.219e-05,2]
[423108782,1779856244000,-421.67807202,8.219e-05,2]
[423108780,1779856244000,-339.18423563,8.219e-05,2]
[423108797,1779856244000,-369.18765746,8.219e-05,2]
[423108795,1779856244000,-66.81330198,8.219e-05,2]
[423108836,1779856244000,-500.0,8.219e-05,2]
[423108801,1779856244000,-500.0,8.219e-05,2]
[423108805,1779856244000,-180.60638501,8.219e-05,2]
[423108803,1779856244000,-500.0,8.219e-05,2]
[423108807,1779856244000,-281.55535825,8.219e-05,2]
[423108809,1779856244000,-500.0,8.219e-05,2]
[423108811,1779856244000,-384.54771972,8.219e-05,2]
[423108838,1779856244000,-500.0,8.219e-05,2]
[423108842,1779856244000,-500.0,8.219e-05,2]
[423108840,1779856244000,-500.0,8.219e-05,2]
[423108846,1779856244000,-500.0,8.219e-05,2]
[423108793,1779856244000,-501.46993848,8.219e-05,2]
[423108894,1779856244000,-500.0,8.219e-05,2]
[423108890,1779856244000,-500.0,8.219e-05,2]
[423108896,1779856244000,-500.0,8.219e-05,2]
[423108948,1779856244000,-502.98489721,8.219e-05,2]
[423108946,1779856244000,-503.40854112,8.219e-05,2]
[423108952,1779856244000,-564.67,8.219e-05,2]
[423108950,1779856244000,-500.0,8.219e-05,2]
[423108965,1779856244000,-500.0,8.219e-05,2]
[423108954,1779856244000,-501.67449274,8.219e-05,2]
[423108958,1779856244000,-500.0,8.219e-05,2]
[423108969,1779856244000,-500.44535198,8.219e-05,2]
[423108967,1779856244000,-500.0,8.219e-05,2]
[423108971,1779856244000,-500.0,8.219e-05,2]
[423108973,1779856244000,-504.44267717,8.219e-05,2]
[423108962,1779856244000,-500.0,8.219e-05,2]
[423108960,1779856244000,-500.0,8.219e-05,2]
[423108975,1779856244000,-387.79536902,8.219e-05,2]
[423108977,1779856244000,-500.0,8.219e-05,2]
[423108979,1779856244000,-500.0,8.219e-05,2]
[423108981,1779856244000,-500.0,8.219e-05,2]
[423108985,1779856244000,-506.21176593,8.219e-05,2]
[423108987,1779856244000,-502.89232216,8.219e-05,2]
[423108983,1779856244000,-500.0,8.219e-05,2]
[423108892,1779856244000,-500.0,8.219e-05,2]
[423108936,1779856244000,-500.0,8.219e-05,2]
[423108934,1779856244000,-537.45,8.219e-05,2]
[423108956,1779856244000,-500.0,8.219e-05,2]
[423108927,1779856244000,-500.0,8.219e-05,2]
[423108898,1779856244000,-500.0,8.219e-05,2]
[423108900,1779856244000,-500.0,8.219e-05,2]
[423108902,1779856244000,-500.0,8.219e-05,2]
[423108911,1779856244000,-500.0,8.219e-05,2]
[423108989,1779856244000,-277.63350926,8.219e-05,2]
[423108931,1779856244000,-500.0,8.219e-05,2]
[423108913,1779856244000,-646.87538855,8.219e-05,2]
[423108915,1779856244000,-421.88,8.219e-05,2]
[423108906,1779856244000,-165.22,8.219e-05,2]
[423108917,1779856244000,-647.05,8.219e-05,2]
[423108919,1779856244000,-500.0,8.219e-05,2]
[423108903,1779856244000,-500.0,8.219e-05,2]
[423108907,1779856244000,-500.0,8.219e-05,2]
[423108921,1779856244000,-422.69124939,8.219e-05,2]
[423108925,1779856244000,-623.93,8.219e-05,2]
[423108923,1779856244000,-500.0,8.219e-05,2]
[423108938,1779856244000,-515.74,8.219e-05,2]
[423108940,1779856244000,-500.0,8.219e-05,2]
[423108942,1779856244000,-500.0,8.219e-05,2]
[423108944,1779856244000,-502.52098636,8.219e-05,2]
[423108909,1779856244000,-220.87331128,8.219e-05,2]
[423108929,1779856244000,-500.0,8.219e-05,2]
[423109017,1779856245000,-500.0,8.219e-05,2]
[423109011,1779856245000,-500.0,8.219e-05,2]
[423109019,1779856245000,-500.0,8.219e-05,2]
[423109009,1779856245000,-500.0,8.219e-05,2]
[423109007,1779856245000,-500.0,8.219e-05,2]
[423109003,1779856245000,-537.87071813,8.219e-05,2]
[423108996,1779856245000,-494.39635528,8.219e-05,2]
[423109005,1779856245000,-564.24005453,8.219e-05,2]
[423109000,1779856245000,-500.0,8.219e-05,2]
[423108994,1779856245000,-503.22230869,8.219e-05,2]
[423109013,1779856245000,-579.0,8.219e-05,2]
[423108992,1779856245000,-501.70166642,8.219e-05,2]
[423109021,1779856245000,-500.0,8.219e-05,2]
[423108998,1779856245000,-9.64547541,8.219e-05,2]
[423109023,1779856245000,-500.0,8.219e-05,2]
[423109027,1779856245000,-500.0,8.219e-05,2]
[423109042,1779856245000,-151.0,8.264e-05,2]
[423109037,1779856245000,-500.0,8.219e-05,2]
[423109046,1779856245000,-456.7502812,8.264e-05,2]
[423109047,1779856245000,-160.0,8.404e-05,2]
[423109044,1779856245000,-151.0,8.264e-05,2]
[423109048,1779856245000,-1954.82868345,8.407e-05,2]
[423109031,1779856245000,-508.08,8.219e-05,2]
[423109033,1779856245000,-500.0,8.219e-05,2]
[423109029,1779856245000,-500.0,8.219e-05,2]
[423109015,1779856245000,-1902.14,8.219e-05,2]
[423109025,1779856245000,-537.22,8.219e-05,2]
[423109040,1779856245000,-456.4981069,8.259e-05,2]
[423109350,1779856247000,-165.28050024,8.493e-05,2]
[423109354,1779856247000,-258.07,8.493e-05,2]
[423109349,1779856247000,-500.0,8.493e-05,2]
[423109345,1779856247000,-500.0,8.493e-05,2]
[423109352,1779856247000,-500.0,8.493e-05,2]
[423109332,1779856247000,-500.0,8.493e-05,2]
[423109341,1779856247000,-500.0,8.493e-05,2]
[423109343,1779856247000,-406.63163193,8.493e-05,2]
[423109330,1779856247000,-500.0,8.493e-05,2]
[423109328,1779856247000,-548.02,8.493e-05,2]
[423109356,1779856247000,-1902.14,8.493e-05,2]
[423109347,1779856247000,-500.0,8.493e-05,2]
[423109358,1779856247000,-514.13733331,8.493e-05,2]
[423109369,1779856247000,-500.0,8.493e-05,2]
[423109361,1779856247000,-500.0,8.493e-05,2]
[423109363,1779856247000,-500.0,8.493e-05,2]
[423109365,1779856247000,-500.0,8.493e-05,2]
[423109367,1779856247000,-508.08,8.493e-05,2]
[423109339,1779856247000,-407.21284237,8.493e-05,2]
[423109373,1779856247000,-152.0,8.504e-05,7]
[423109371,1779856247000,-152.0,8.504e-05,7]
[423109375,1779856247000,-500.0,8.767e-05,2]
[423109377,1779856247000,-262.82,8.767e-05,2]
[423109378,1779856247000,-611.29,8.767e-05,2]
[423109384,1779856247000,-500.0,8.767e-05,2]
[423109382,1779856247000,-500.0,8.767e-05,2]
[423109380,1779856247000,-614.69,8.767e-05,2]
[423109360,1779856247000,-500.0,8.493e-05,2]
[423109337,1779856247000,-263.62059696,8.493e-05,2]
[423109326,1779856247000,-500.0,8.493e-05,2]
[423109334,1779856247000,-460.47615291,8.493e-05,2]
[423109390,1779856247000,-230.19,8.767e-05,2]
[423109281,1779856247000,-6123.39229221,8.407e-05,2]
[423109283,1779856247000,-635.43036947,8.493e-05,2]
[423109287,1779856247000,-232.63,8.493e-05,2]
[423109285,1779856247000,-500.0,8.493e-05,2]
[423109279,1779856247000,-769.40323389,8.407e-05,2]
[423109291,1779856247000,-500.0,8.493e-05,2]
[423109289,1779856247000,-500.87164757,8.493e-05,2]
[423109293,1779856247000,-637.9,8.493e-05,2]
[423109295,1779856247000,-444.81,8.493e-05,2]
[423109303,1779856247000,-500.0,8.493e-05,2]
[423109301,1779856247000,-500.0,8.493e-05,2]
[423109297,1779856247000,-351.11370216,8.493e-05,2]
[423109335,1779856247000,-500.0,8.493e-05,2]
[423109299,1779856247000,-148.88629784,8.493e-05,2]
[423109312,1779856247000,-500.0,8.493e-05,2]
[423109305,1779856247000,-500.0,8.493e-05,2]
[423109308,1779856247000,-1000.0,8.493e-05,2]
[423109310,1779856247000,-500.0,8.493e-05,2]
[423109314,1779856247000,-219.88,8.493e-05,2]
[423109316,1779856247000,-500.0,8.493e-05,2]
[423109318,1779856247000,-500.0,8.493e-05,2]
[423109319,1779856247000,-500.0,8.493e-05,2]
[423109320,1779856247000,-500.0,8.493e-05,2]
[423109322,1779856247000,-500.0,8.493e-05,2]
[423109321,1779856247000,-500.0,8.493e-05,2]
[423109324,1779856247000,-496.83089882,8.493e-05,2]
[423109323,1779856247000,-500.0,8.493e-05,2]
[423109307,1779856247000,-500.0,8.493e-05,2]
[423109388,1779856247000,-500.0,8.767e-05,2]
[423109423,1779856247000,-118.37186252,8.767e-05,2]
[423109405,1779856247000,-500.0,8.767e-05,2]
[423109456,1779856247000,-500.0,9.041e-05,2]
[423109450,1779856247000,-500.0,9.041e-05,2]
[423109459,1779856247000,-500.0,9.041e-05,2]
[423109454,1779856247000,-500.0,9.041e-05,2]
[423109461,1779856247000,-1902.14,9.041e-05,2]
[423109463,1779856247000,-500.0,9.041e-05,2]
[423109465,1779856247000,-500.0,9.041e-05,2]
[423109483,1779856247000,-500.0,9.315e-05,2]
[423109467,1779856247000,-508.08,9.041e-05,2]
[423109469,1779856247000,-326.0419999,9.086e-05,2]
[423109478,1779856247000,-185.0,9.234e-05,2]
[423109471,1779856247000,-443.0,9.234e-05,2]
[423109480,1779856247000,-500.0,9.315e-05,2]
[423109473,1779856247000,-194.033,9.234e-05,2]
[423109484,1779856247000,-500.0,9.315e-05,2]
[423109488,1779856247000,-500.0,9.315e-05,2]
[423109490,1779856247000,-500.0,9.315e-05,2]
[423109493,1779856247000,-500.0,9.315e-05,2]
[423109503,1779856247000,-500.0,9.315e-05,2]
[423109497,1779856247000,-500.0,9.315e-05,2]
[423109495,1779856247000,-500.0,9.315e-05,2]
[423109498,1779856247000,-343.44404088,9.315e-05,2]
[423109501,1779856247000,-156.55595912,9.315e-05,2]
[423109505,1779856247000,-500.0,9.315e-05,2]
[423109507,1779856247000,-1902.14,9.315e-05,2]
[423109509,1779856247000,-500.0,9.315e-05,2]
[423109386,1779856247000,-500.0,8.767e-05,2]
[423109458,1779856247000,-500.0,9.041e-05,2]
[423109446,1779856247000,-151.0,9.041e-05,2]
[423109487,1779856247000,-500.0,9.315e-05,2]
[423109448,1779856247000,-151.0,9.041e-05,2]
[423109408,1779856247000,-500.0,8.767e-05,2]
[423109407,1779856247000,-500.0,8.767e-05,2]
[423109392,1779856247000,-500.0,8.767e-05,2]
[423109394,1779856247000,-500.0,8.767e-05,2]
[423109401,1779856247000,-500.0,8.767e-05,2]
[423109411,1779856247000,-331.31648306,8.767e-05,2]
[423109396,1779856247000,-500.0,8.767e-05,2]
[423109397,1779856247000,-403.02,8.767e-05,2]